bitfinex-derivatives/quotes_SOLF0:USTF0_20251201
["timestamp","ask_amount","ask_price","bid_price","bid_amount"]
[1764584414628,3.35929667,127.18,127.16,3.34]
[1764584415026,3.3,127.17,127.15,0.05250101]
[1764584415331,3.3,127.17,127.15,3.39250101]
[1764584415526,10.3788,127.16,127.15,0.05250101]
[1764584415730,2.60832613,127.17,127.11,26.82]
[1764584415731,3.3,127.15,127.11,30.16]
[1764584415926,3.3,127.15,127.12,3.34]
[1764584417030,3.35386273,127.15,127.12,3.3917532]
[1764584417429,10.3803,127.14,127.12,3.3917532]
[1764584418136,3.3,127.14,127.12,3.3917532]
[1764584420129,0.05386273,127.15,127.12,3.3917532]
[1764584420334,10.45336273,127.15,127.12,3.3917532]
[1764584420535,3.32,127.14,127.12,3.3917532]
[1764584422430,10.45336273,127.15,127.12,3.3917532]
[1764584422738,7.13336273,127.15,127.13,3.16]
[1764584424039,10.45336273,127.15,127.13,3.16]
[1764584426327,7.13336273,127.15,127.12,3.2117532]
[1764584426532,10.45336273,127.15,127.12,3.2117532]
[1764584428740,3.21,127.14,127.12,3.2117532]
[1764584430638,10.34336273,127.15,127.12,3.2117532]
[1764584433251,3.21,127.14,127.12,3.2117532]
[1764584434148,3.21,127.14,127.12,0.0517532]
[1764584435148,3.21,127.13,127.12,0.0517532]
[1764584439755,10.2901,127.14,127.12,3.2117532]
[1764584440458,3.21,127.13,127.12,0.0517532]
[1764584440853,10.2901,127.14,127.12,3.2117532]
[1764584441158,3.21,127.13,127.12,3.2117532]
[1764584441358,7.0801,127.14,127.12,3.2117532]
[1764584442555,10.2901,127.14,127.12,3.2117532]
[1764584444262,3.21,127.14,127.12,3.2117532]
[1764584449968,3.21,127.14,127.12,0.0517532]
[1764584452766,3.21,127.14,127.12,3.4217532]
[1764584455162,3.21,127.14,127.12,0.0517532]
[1764584459870,3.21,127.14,127.12,7.1328532]
[1764584460766,3.21,127.14,127.12,10.5028532]
[1764584469777,3.21,127.14,127.12,3.4217532]
[1764584470478,3.13,127.13,127.12,3.4217532]
[1764584470678,10.2101,127.14,127.12,3.4217532]
[1764584473782,3.13,127.13,127.12,3.4217532]
[1764584477386,10.2105,127.13,127.12,0.0517532]
[1764584477889,10.2105,127.13,127.12,3.4217532]
[1764584479891,10.2105,127.13,127.12,0.0517532]
[1764584491201,3.13,127.13,127.12,0.0517532]
[1764584492198,10.2105,127.13,127.12,0.0517532]
[1764584497497,7.13376273,127.15,127.12,3.3617532]
[1764584497696,3.28,127.14,127.12,3.3617532]
[1764584498504,3.28,127.13,127.12,3.3617532]
[1764584504299,7.0801,127.14,127.12,3.3617532]
[1764584504506,10.3601,127.14,127.12,3.3617532]
[1764584504692,3.28,127.13,127.12,3.3617532]
[1764584506101,3.28,127.13,127.12,0.0517532]
[1764584506295,10.3605,127.13,127.12,0.0517532]
[1764584513708,3.28,127.13,127.12,0.0517532]
[1764584514109,10.29376273,127.15,127.12,3.3717532]
[1764584514309,10.2402,127.14,127.12,3.3717532]
[1764584514715,3.16,127.13,127.12,3.3717532]
[1764584515209,3.16,127.13,127.12,0.0517532]
[1764584518120,10.2405,127.13,127.12,0.0517532]
[1764584535537,3.16,127.13,127.12,3.3717532]
[1764584535731,3.16,127.13,127.12,0.0517532]
[1764584536843,10.24,127.14,127.12,3.3717532]
[1764584537337,3.16,127.13,127.12,3.3717532]
[1764584538936,3.16,127.13,127.12,0.0517532]
[1764584540538,3.16,127.13,127.12,3.1817532]
[1764584541336,3.16,127.13,127.12,5.79458132]
[1764584542540,3.30386273,127.15,127.13,3.13]
[1764584542838,3.30386273,127.15,127.12,5.79458132]
[1764584546342,3.30386273,127.15,127.13,3.13]
[1764584548541,3.30386273,127.15,127.14,6.00282812]
[1764584548542,0.05386273,127.15,127.14,6.00282812]
[1764584549342,0.05386273,127.15,127.14,13.08282812]
[1764584549747,3.13,127.19,127.15,3.39]
[1764584550046,7.0761,127.21,127.19,3.39]
[1764584550347,3.13,127.2,127.18,6.00282812]
[1764584550741,3.13,127.2,127.18,6.05991568]
[1764584550742,3.17964628,127.2,127.18,6.05991568]
[1764584553047,3.17964628,127.2,127.18,0.05708756]
[1764584553346,3.17964628,127.2,127.18,2.66991568]
[1764584562154,10.2072,127.19,127.18,0.05708756]
[1764584564542,10.2072,127.19,127.18,6.05991568]
[1764584564954,3.13,127.19,127.18,6.05991568]
[1764584565859,3.13,127.19,127.18,2.66991568]
[1764584569550,0.04964628,127.2,127.18,6.05991568]
[1764584569751,3.17964628,127.2,127.19,3.39]
[1764584569958,3.17964628,127.2,127.18,5.79991568]
[1764584572459,3.17964628,127.2,127.18,3.18708756]
[1764584572952,10.25634628,127.2,127.18,3.18708756]
[1764584573148,3.17964628,127.2,127.18,3.18708756]
[1764584574161,0.04964628,127.2,127.18,3.18708756]
[1764584575366,3.21964628,127.2,127.18,3.18708756]
[1764584579561,0.04964628,127.2,127.18,3.18708756]
[1764584581171,3.21964628,127.2,127.18,3.18708756]
[1764584584174,0.04964628,127.2,127.18,3.18708756]
[1764584585682,0.04964628,127.2,127.18,14.34129801]
[1764584585869,0.04964628,127.2,127.19,3.13]
[1764584586072,7.075,127.23,127.19,3.13]
[1764584586073,3.17,127.23,127.19,3.13]
[1764584586474,3.17,127.23,127.21,3.13]
[1764584586978,3.22619869,127.23,127.21,3.18845372]
[1764584587683,0.05619869,127.23,127.21,3.18845372]
[1764584588078,3.22619869,127.23,127.21,3.18845372]
[1764584590587,0.05619869,127.23,127.22,3.13]
[1764584591087,0.05619869,127.23,127.22,10.2055]
[1764584591488,3.17,127.27,127.23,3.13]
[1764584591677,3.17,127.25,127.23,3.13]
[1764584592588,3.22392646,127.25,127.23,3.18968542]
[1764584599192,0.05392646,127.25,127.23,3.18968542]
[1764584599893,3.22392646,127.25,127.23,3.18968542]
[1764584600992,0.05392646,127.25,127.23,3.18968542]
[1764584601590,10.4722,127.28,127.25,3.19]
[1764584602197,3.4,127.29,127.26,3.19]
[1764584602393,3.4,127.31,127.26,3.19]
[1764584602594,3.4,127.29,127.27,3.24463555]
[1764584602997,3.4,127.29,127.27,0.05463555]
[1764584603295,3.4,127.27,127.23,3.19]
[1764584603496,3.4,127.27,127.2,172.0759]
[1764584603497,3.4,127.27,127.21,3.19]
[1764584603992,3.4,127.26,127.22,3.19]
[1764584604195,3.4,127.26,127.23,0.05126164]
[1764584604500,3.4,127.24,127.23,0.05126164]
[1764584606691,3.4,127.24,127.23,3.24126164]
[1764584608901,3.4,127.24,127.23,0.05126164]
[1764584610298,3.37785286,127.25,127.23,3.24126164]
[1764584614595,0.05785286,127.25,127.23,3.24126164]
[1764584619304,3.37785286,127.25,127.23,3.24126164]
[1764584620398,10.45185286,127.25,127.23,0.05126164]
[1764584620599,3.32,127.24,127.23,0.05126164]
[1764584622295,10.3944,127.24,127.23,0.05126164]
[1764584625205,16.44048644,127.24,127.23,0.05126164]
[1764584632812,3.24,127.21,127.19,30.12]
[1764584633316,10.3164,127.21,127.19,30.12]
[1764584633611,3.24,127.2,127.19,30.12]
[1764584633817,10.3762485,127.21,127.19,30.12]
[1764584635111,10.3762485,127.21,127.2,3.32]
[1764584636920,10.3762485,127.21,127.19,26.8]
[1764584637116,10.3762485,127.21,127.19,30.12]
[1764584638022,10.3762485,127.21,127.2,3.32]
[1764584638023,3.2998485,127.21,127.2,3.32]
[1764584639524,0.0598485,127.21,127.2,3.32]
[1764584642823,7.1359485,127.21,127.2,3.32]
[1764584643226,10.3759485,127.21,127.19,30.12]
[1764584643419,0.0598485,127.21,127.2,3.32]
[1764584643722,3.2998485,127.21,127.19,30.12]
[1764584644325,10.3759485,127.21,127.19,30.12]
[1764584644624,10.3759485,127.21,127.2,3.32]
[1764584646523,10.3759485,127.21,127.19,26.8]
[1764584646828,10.3759485,127.21,127.19,30.12]
[1764584647219,3.24,127.2,127.19,30.12]
[1764584648727,10.3759485,127.21,127.19,30.12]
[1764584653929,10.3759485,127.21,127.2,3.32]
[1764584657326,10.3759485,127.21,127.19,30.12]
[1764584658735,7.1359485,127.21,127.2,3.32]
[1764584659128,0.0598485,127.21,127.2,3.32]
[1764584670444,0.0598485,127.21,127.2,5.92934438]
[1764584682746,7.0744,127.24,127.21,3.4]
[1764584683046,7.0744,127.24,127.23,3.4]
[1764584690159,0.05322967,127.25,127.23,3.4]
[1764584691367,0.05322967,127.25,127.23,10.4749]
[1764584691562,0.05322967,127.25,127.24,3.19]
[1764584698876,0.05322967,127.25,127.24,10.2644]
[1764584700181,7.0726,127.28,127.25,3.19]
[1764584700778,10.4726,127.28,127.25,3.19]
[1764584701082,10.53057724,127.28,127.25,3.24850652]
[1764584701273,3.4,127.27,127.25,3.24850652]
[1764584703076,7.13057724,127.28,127.25,3.24850652]
[1764584703379,10.53057724,127.28,127.25,3.24850652]
[1764584705376,3.4,127.27,127.25,3.24850652]
[1764584713591,3.4,127.25,127.2,3.19]
[1764584714494,3.4,127.23,127.21,3.2469204]
[1764584714696,3.4,127.3,127.22,3.19]
[1764584714882,3.4,127.3,127.24,3.19]
[1764584715782,109.9941,127.31,127.24,3.19]
[1764584715783,10.52816942,127.28,127.26,0.05236259]
[1764584715983,7.12816942,127.28,127.26,3.24236259]
[1764584716292,10.52816942,127.28,127.26,3.24236259]
[1764584720698,3.36,127.27,127.26,3.18236259]
[1764584721000,7.12816942,127.28,127.26,3.18236259]
[1764584721696,0.05596942,127.28,127.27,3.13]
[1764584726711,0.05596942,127.28,127.27,10.2027]
[1764584731916,0.05596942,127.28,127.27,3.13]
[1764584732312,0.05596942,127.28,127.26,0.05236259]
[1764584732313,3.41596942,127.28,127.26,0.05236259]
[1764584733518,3.36,127.27,127.26,0.05236259]
[1764584734225,10.4327,127.27,127.26,0.05236259]
[1764584735519,3.36,127.27,127.26,0.05236259]
[1764584736024,3.36,127.27,127.21,3.19]
[1764584736933,0.05383088,127.25,127.23,3.24093967]
[1764584747440,0.05383088,127.25,127.24,3.19]
[1764584748534,0.05383088,127.25,127.24,65.19]
[1764584751838,0.05383088,127.25,127.24,91.99]
[1764584753147,0.05383088,127.25,127.24,99.0644]
[1764584754144,0.05383088,127.25,127.24,37.0644]
[1764584754346,0.05383088,127.25,127.24,39.67044683]
[1764584754839,3.37,127.31,127.27,3.15]
[1764584755036,3.37,127.31,127.28,3.15]
[1764584755943,3.42535387,127.31,127.28,3.20744866]
[1764584756339,10.49595387,127.31,127.28,3.20744866]
[1764584757538,10.4411,127.3,127.28,3.20744866]
[1764584758040,10.4416,127.29,127.28,0.05744866]
[1764584764138,7.0716,127.29,127.28,3.20744866]
[1764584767146,7.0711,127.3,127.28,3.20744866]
[1764584767648,10.4411,127.3,127.28,3.20744866]
[1764584769449,7.0711,127.3,127.28,3.20744866]
[1764584769753,7.12595387,127.31,127.3,3.15]
[1764584770056,0.05535387,127.31,127.3,3.15]
[1764584772956,3.42535387,127.31,127.29,5.75604683]
[1764584775255,3.42535387,127.31,127.29,3.15]
[1764584775853,10.49605387,127.31,127.29,3.15]
[1764584776646,3.37,127.3,127.28,0.05744866]
[1764584778253,7.0716,127.29,127.28,0.05744866]
[1764584778457,10.4416,127.29,127.28,0.05744866]
[1764584783658,3.22,127.26,127.24,26.8]
[1764584783965,3.22,127.26,127.24,30.05]
[1764584784260,10.2931,127.27,127.25,3.25]
[1764584784659,10.35198094,127.27,127.25,3.30754482]
[1764584797365,3.27888094,127.27,127.25,3.30754482]
[1764584797561,0.05888094,127.27,127.25,3.30754482]
[1764584797765,0.05888094,127.27,127.26,3.3]
[1764584798464,3.33888094,127.27,127.25,3.35754482]
[1764584807172,3.33888094,127.27,127.25,0.05754482]
[1764584808168,3.33888094,127.27,127.25,3.35754482]
[1764584810176,10.41178094,127.27,127.25,3.35754482]
[1764584816178,3.14,127.26,127.25,3.35754482]
[1764584820587,7.13178094,127.27,127.25,3.35754482]
[1764584821683,10.27178094,127.27,127.25,3.35754482]
[1764584827087,3.14,127.26,127.25,0.05754482]
[1764584832891,10.2133,127.26,127.25,0.05754482]
[1764584842302,7.0733,127.26,127.25,3.25754482]
[1764584842705,10.4233,127.26,127.25,0.05754482]
[1764584848407,10.4233,127.26,127.25,3.39754482]
[1764584848608,10.4233,127.26,127.25,0.05754482]
[1764584850212,3.35,127.26,127.25,0.05754482]
[1764584853508,10.4233,127.26,127.25,0.05754482]
[1764584885541,3.37,127.22,127.2,7.0763]
[1764584885736,3.37,127.22,127.18,3.16]
[1764584885930,3.37,127.22,127.19,2.6074269]
[1764584886136,3.37,127.22,127.19,5.7674269]
[1764584886537,3.37,127.22,127.19,5.82013552]
[1764584886538,3.42197422,127.22,127.19,5.82013552]
[1764584887343,3.37,127.21,127.19,5.82013552]
[1764584891948,3.37,127.21,127.19,3.21270862]
[1764584894849,10.4461,127.21,127.19,3.21270862]
[1764584896857,3.42197422,127.22,127.2,5.7674269]
[1764584897956,10.49747422,127.22,127.2,5.7674269]
[1764584898257,7.12747422,127.22,127.21,3.16]
[1764584898457,10.49747422,127.22,127.21,3.16]
[1764584898958,0.05197422,127.22,127.21,3.16]
[1764584900259,3.45197422,127.22,127.21,3.16]
[1764584900957,0.05197422,127.22,127.21,3.16]
[1764584911965,3.39,127.27,127.21,3.16]
[1764584912169,109.9855,127.32,127.26,3.07]
[1764584912170,3.39,127.29,127.26,3.07]
[1764584912366,3.39,127.32,127.28,3.07]
[1764584913068,10.4611,127.3,127.29,0.05068689]
[1764584916770,3.45006584,127.31,127.29,5.72811379]
[1764584918174,3.45006584,127.31,127.29,3.12068689]
[1764584920879,0.06006584,127.31,127.29,5.72811379]
[1764584921075,0.06006584,127.31,127.3,3.07]
[1764584922179,3.45006584,127.31,127.3,3.07]
[1764584922379,3.45006584,127.31,127.29,5.72811379]
[1764584924573,3.45006584,127.31,127.29,3.12068689]
[1764584925077,3.45006584,127.31,127.29,0.05068689]
[1764584927578,10.4611,127.3,127.29,0.05068689]
[1764584928883,3.39,127.27,127.25,3.07]
[1764584929987,3.44717069,127.27,127.25,3.12972956]
[1764584936086,0.05717069,127.27,127.25,3.12972956]
[1764584936286,0.05717069,127.27,127.25,10.20342956]
[1764584936584,0.05717069,127.27,127.26,3.2]
[1764584941096,0.05717069,127.27,127.26,10.2733]
[1764584944903,7.0715,127.3,127.28,3.2]
[1764584945702,7.13077371,127.3,127.28,3.25742897]
[1764584946011,10.51077371,127.3,127.28,3.25742897]
[1764584946605,7.13077371,127.3,127.28,3.25742897]
[1764584949604,0.05927371,127.3,127.29,3.2]
[1764584955604,0.05927371,127.3,127.29,10.2716]
[1764584956098,0.05927371,127.3,127.29,3.2]
[1764584957800,0.05927371,127.3,127.29,10.2716]
[1764584978124,0.05927371,127.3,127.29,3.2]
[1764584980126,0.05927371,127.3,127.29,10.2716]
[1764584988537,3.20927371,127.3,127.28,0.05742897]
[1764584988728,3.20927371,127.3,127.28,3.33742897]
[1764584989130,0.05927371,127.3,127.28,3.33742897]
[1764585001941,7.13057371,127.3,127.28,3.33742897]
[1764585002143,10.19057371,127.3,127.28,3.33742897]
[1764585002343,3.06,127.28,127.25,3.08]
[1764585003345,10.133,127.27,127.25,3.13179093]
[1764585003542,3.06,127.26,127.25,3.13179093]
[1764585003746,7.073,127.27,127.25,3.13179093]
[1764585004047,10.133,127.27,127.25,3.13179093]
[1764585007439,0.05403546,127.28,127.25,3.13179093]
[1764585007646,0.05403546,127.28,127.26,3.08]
[1764585008350,7.12653546,127.28,127.26,3.08]
[1764585008751,10.18653546,127.28,127.26,3.08]
[1764585009341,3.06,127.27,127.26,3.08]
[1764585009545,10.1333,127.27,127.25,3.13179093]
[1764585010044,7.0733,127.26,127.25,3.13179093]
[1764585012651,3.06,127.25,127.23,3.08]
[1764585012851,3.06,127.27,127.23,3.08]
[1764585013251,10.1333,127.27,127.23,3.08]
[1764585013446,10.1333,127.27,127.23,2.60542404]
[1764585013653,0.05925838,127.26,127.24,3.12976203]
[1764585014356,7.13265838,127.26,127.24,3.12976203]
[1764585015157,0.05925838,127.26,127.24,3.12976203]
[1764585022163,3.36925838,127.26,127.24,3.12976203]
[1764585023164,10.44255838,127.26,127.24,3.12976203]
[1764585026966,7.13255838,127.26,127.24,3.12976203]
[1764585027156,0.05925838,127.26,127.25,5.82542404]
[1764585027361,3.36925838,127.26,127.25,3.22]
[1764585028067,0.05925838,127.26,127.25,3.22]
[1764585036163,7.13255838,127.26,127.25,3.22]
[1764585043178,0.05925838,127.26,127.25,3.22]
[1764585043377,0.05925838,127.26,127.25,30.0]
[1764585044574,0.05925838,127.26,127.25,37.0738]
[1764585046680,0.05925838,127.26,127.25,30.0]
[1764585049771,0.05925838,127.26,127.25,37.0738]
[1764585049990,3.31,127.31,127.26,3.18]
[1764585050183,3.31,127.31,127.28,3.18]
[1764585050371,10.3805,127.31,127.28,3.18]
[1764585051083,10.4374369,127.31,127.28,3.23479847]
[1764585051983,3.31,127.3,127.28,3.23479847]
[1764585054195,10.3811,127.3,127.28,3.23479847]
[1764585055595,10.3816,127.29,127.28,3.23479847]
[1764585055795,10.3816,127.29,127.28,0.05479847]
[1764585078604,0.0569369,127.31,127.28,3.23479847]
[1764585078813,10.3811,127.3,127.28,3.23479847]
[1764585079307,10.4375369,127.31,127.28,3.23479847]
[1764585080013,0.0569369,127.31,127.29,3.33]
[1764585080214,3.11,127.35,127.31,3.33]
[1764585080407,3.11,127.36,127.31,3.33]
[1764585081223,3.16467053,127.35,127.33,3.33]
[1764585081413,10.23307053,127.35,127.33,3.33]
[1764585081716,3.11,127.34,127.32,3.38536971]
[1764585084716,10.1794,127.33,127.32,0.05536971]
[1764585085416,7.071,127.31,127.28,3.33]
[1764585085616,3.11,127.3,127.28,3.33]
[1764585086622,10.23173823,127.3,127.28,3.38654072]
[1764585095721,0.05033823,127.3,127.28,3.38654072]
[1764585097522,0.05033823,127.3,127.29,3.31]
[1764585099120,3.19033823,127.3,127.28,65.36654072]
[1764585099319,3.19033823,127.3,127.28,3.36654072]
[1764585100326,0.05033823,127.3,127.28,3.36654072]
[1764585103231,3.19033823,127.3,127.28,3.36654072]
[1764585103428,10.26153823,127.3,127.28,3.36654072]
[1764585117342,3.19033823,127.3,127.28,10.43864072]
[1764585117544,3.19033823,127.3,127.29,3.18]
[1764585118344,0.05033823,127.3,127.29,10.2516]
[1764585120448,0.05033823,127.3,127.29,12.8558431]
[1764585120644,3.1,127.35,127.31,3.18]
[1764585120945,3.1,127.35,127.32,3.18]
[1764585121544,10.1683,127.35,127.32,3.18]
[1764585121741,10.22423775,127.35,127.32,3.23818241]
[1764585121942,10.22423775,127.35,127.34,3.18]
[1764585121943,0.05593775,127.35,127.34,3.18]
[1764585123749,3.15593775,127.35,127.32,7.12768241]
[1764585123951,3.15593775,127.35,127.33,3.18]
[1764585125443,0.05593775,127.35,127.34,5.7842431]
[1764585125645,3.1,127.4,127.35,3.18]
[1764585125951,117.22309435,127.43,127.34,2.6042431]
[1764585125952,3.1,127.43,127.39,3.18]
[1764585126352,10.1655,127.41,127.39,3.18]
[1764585126744,10.22000005,127.41,127.39,3.2343633]
[1764585129749,3.1,127.4,127.39,0.0543633]
[1764585131653,4.66,127.4,127.39,0.0543633]
[1764585133857,3.1,127.4,127.39,0.0543633]
[1764585136452,10.1655,127.4,127.39,0.0543633]
[1764585137553,3.1,127.4,127.39,0.0543633]
[1764585137859,0.05450005,127.41,127.39,3.2343633]
[1764585142752,0.05450005,127.41,127.39,10.3004633]
[1764585143060,0.05450005,127.41,127.4,3.09]
[1764585146559,3.45450005,127.41,127.39,7.1204633]
[1764585146758,3.45450005,127.41,127.39,10.2104633]
[1764585148463,3.45450005,127.41,127.4,3.31]
[1764585149265,0.05450005,127.41,127.4,3.31]
[1764585150264,3.26450005,127.41,127.39,10.4304633]
[1764585150965,0.05450005,127.41,127.4,3.31]
[1764585157959,0.05450005,127.41,127.39,0.0543633]
[1764585157960,10.32950005,127.41,127.39,3.3643633]
[1764585158770,7.11950005,127.41,127.39,3.3643633]
[1764585158961,10.32950005,127.41,127.39,3.3643633]
[1764585162773,10.2755,127.4,127.39,0.0543633]
[1764585169075,10.2766,127.38,127.37,26.78]
[1764585176982,10.1872,127.37,127.36,0.05488321]
[1764585177779,10.1872,127.37,127.36,3.32488321]
[1764585178168,7.0672,127.37,127.36,3.32488321]
[1764585180785,10.1872,127.37,127.36,3.32488321]
[1764585180986,10.1872,127.37,127.36,0.05488321]
[1764585183176,3.12,127.33,127.29,3.27]
[1764585183785,10.1891,127.34,127.29,3.27]
[1764585183984,3.12,127.33,127.29,3.27]
[1764585184189,3.17235621,127.32,127.3,3.32863921]
[1764585184375,3.17390973,127.32,127.3,3.32348727]
[1764585185480,10.24390973,127.32,127.3,3.32348727]
[1764585185981,7.12390973,127.32,127.3,3.32348727]
[1764585187085,10.24390973,127.32,127.3,3.32348727]
[1764585190290,10.1905,127.31,127.3,0.05348727]
[1764585202605,3.37,127.27,127.24,3.31]
[1764585203500,3.42812542,127.27,127.24,3.36710407]
[1764585204405,10.50082542,127.27,127.24,3.36710407]
[1764585205608,3.37,127.26,127.24,3.36710407]
[1764585211113,10.4434,127.26,127.24,3.36710407]
[1764585213406,3.26,127.25,127.24,0.05710407]
[1764585214006,10.3338,127.25,127.24,0.05710407]
[1764585214212,3.26,127.24,127.19,3.25]
[1764585214918,7.076,127.22,127.19,3.25]
[1764585215118,7.13001623,127.22,127.19,3.30592854]
[1764585215509,10.39001623,127.22,127.19,3.30592854]
[1764585219310,3.26,127.21,127.19,3.30592854]
[1764585226724,10.3362,127.21,127.19,3.30592854]
[1764585228927,3.26,127.2,127.19,0.05592854]
[1764585235429,10.3366,127.2,127.19,0.05592854]
[1764585237919,10.2085,127.17,127.15,3.15]
[1764585238531,3.13,127.16,127.14,3.15]
[1764585238927,10.26269968,127.16,127.14,3.20628534]
[1764585239134,3.13,127.15,127.14,0.05628534]
[1764585242526,10.2094,127.15,127.14,0.05628534]
[1764585251645,10.2094,127.15,127.14,3.20628534]
[1764585251950,3.18379968,127.16,127.14,3.20628534]
[1764585253846,3.13,127.15,127.14,0.05628534]
[1764585255153,10.2094,127.15,127.14,0.05628534]
[1764585270661,10.31269968,127.16,127.14,3.23628534]
[1764585271066,3.18,127.15,127.14,3.23628534]
[1764585271366,3.18,127.15,127.14,0.05628534]
[1764585271859,10.2594,127.15,127.14,0.05628534]
[1764585280574,7.0794,127.15,127.14,3.23628534]
[1764585281272,10.2594,127.15,127.14,3.23628534]
[1764585286578,10.2594,127.15,127.14,5.84829673]
[1764585287385,3.23379968,127.16,127.14,2.66829673]
[1764585287582,3.23379968,127.16,127.15,3.18]
[1764585288071,0.05379968,127.16,127.15,3.18]
[1764585289882,10.2575,127.19,127.16,3.27]
[1764585290081,3.18,127.19,127.18,3.27]
[1764585292078,3.34478942,127.2,127.18,3.27]
[1764585295591,0.05478942,127.2,127.19,5.88201139]
[1764585298296,0.05478942,127.2,127.19,5.88201139]
[1764585299294,0.05478942,127.2,127.19,3.27]
[1764585301596,0.05478942,127.2,127.18,7.0776]
[1764585301597,3.34478942,127.2,127.18,10.3476]
[1764585303497,3.34478942,127.2,127.19,3.27]
[1764585309699,0.05478942,127.2,127.19,10.3472]
[1764585309999,3.29,127.23,127.2,3.27]
[1764585310696,3.29,127.24,127.21,3.27]
[1764585310892,0.04993189,127.24,127.21,3.32592987]
[1764585311292,3.33993189,127.24,127.21,3.32592987]
[1764585312094,3.29,127.23,127.21,0.05592987]
[1764585321006,3.29,127.23,127.21,3.22592987]
[1764585333608,3.2,127.22,127.18,62.0]
[1764585333812,3.2,127.21,127.16,3.37]
[1764585334406,7.0772,127.19,127.16,3.37]
[1764585334601,3.2,127.18,127.16,3.37]
[1764585334808,3.2,127.18,127.16,3.42019368]
[1764585335305,0.05133996,127.19,127.17,3.37]
[1764585336106,0.05133996,127.19,127.18,3.37]
[1764585336812,0.05133996,127.19,127.18,72.4477]
[1764585337009,0.05133996,127.19,127.18,76.52394024]
[1764585337316,0.05133996,127.19,127.18,10.4477]
[1764585338519,3.25133996,127.19,127.17,3.37]
[1764585340615,3.25133996,127.19,127.17,10.4481]
[1764585341512,0.05133996,127.19,127.18,14.52394024]
[1764585341715,3.2,127.23,127.19,3.37]
[1764585341919,3.2,127.23,127.2,3.37]
[1764585342414,110.026,127.27,127.22,3.37]
[1764585342415,10.2739,127.25,127.22,3.37]
[1764585342618,10.33056318,127.25,127.22,3.42125671]
[1764585344213,0.05666318,127.25,127.23,3.37]
[1764585344814,3.2,127.29,127.25,3.37]
[1764585345815,3.25133047,127.28,127.26,0.05861866]
[1764585346318,0.05133047,127.28,127.26,3.42861866]
[1764585350327,0.05133047,127.28,127.26,10.50181866]
[1764585350628,0.05133047,127.28,127.27,3.33]
[1764585352829,3.2,127.31,127.28,3.33]
[1764585353730,3.25411273,127.31,127.28,3.33]
[1764585354426,3.26,127.3,127.28,3.33]
[1764585359834,10.3311,127.3,127.28,3.33]
[1764585360032,3.26,127.29,127.26,0.05861866]
[1764585360433,3.26,127.29,127.26,3.38861866]
[1764585360930,7.0722,127.28,127.26,3.38861866]
[1764585361135,10.39052015,127.28,127.26,3.38861866]
[1764585365838,10.39052015,127.28,127.26,0.05861866]
[1764585365839,3.26,127.27,127.26,0.05861866]
[1764585368236,10.3327,127.27,127.26,0.05861866]
[1764585368829,7.0727,127.27,127.26,3.38861866]
[1764585369041,3.31832015,127.28,127.26,3.38861866]
[1764585369540,0.05832015,127.28,127.26,5.99490119]
[1764585369743,0.05832015,127.28,127.27,3.33]
[1764585370630,0.05832015,127.28,127.27,10.4027]
[1764585373041,3.26,127.33,127.29,3.33]
[1764585373246,3.26,127.33,127.3,3.33]
[1764585373637,3.26,127.32,127.3,3.33]
[1764585374137,3.31367858,127.32,127.3,3.38703311]
[1764585378447,0.05367858,127.32,127.3,3.38703311]
[1764585380048,3.15367858,127.32,127.3,3.38703311]
[1764585380448,0.05367858,127.32,127.3,3.38703311]
[1764585382648,3.15367858,127.32,127.3,3.38703311]
[1764585387142,3.15367858,127.32,127.3,0.05703311]
[1764585387342,9.07978362,127.31,127.26,3.3]
[1764585387550,3.1,127.3,127.26,3.3]
[1764585388452,3.24210097,127.29,127.27,0.05721597]
[1764585389350,10.2622,127.28,127.27,0.05721597]
[1764585392543,3.19,127.25,127.24,26.82]
[1764585392944,10.2638,127.25,127.24,26.82]